[Event "5th EFE Metz Festival IM 2019"]
[Site "Metz"]
[Date "2019.07.23"]
[Round "2.5"]
[White "Harutyunyan, Ruben"]
[Black "Philippe, Guillaume"]
[Result "1/2-1/2"]
[ECO "B41"]
[WhiteElo "2326"]
[BlackElo "2344"]
[Annotator "NA"]
[PlyCount "63"]
[EventDate "2019.07.22"]
[EventType "tourn"]
[EventCountry "FRA"]
[SourceTitle "playchess.com"]
[Source "ChessBase"]
[SourceQuality "1"]
[TimeControl "5400+30"]

1. e4 {[%emt 0:00:00]} c5 {[%emt 0:00:12]} 2. Nf3 {[%emt 0:00:00]} e6 {[%emt 0:00:06]} 3. d4 {[%emt 0:00:00]} cxd4 {[%emt 0:00:12]} 4. Nxd4 {[%emt 0:00:05]} a6 {[%emt 0:00:18]} 5. c4 {[%emt 0:00:04]} Nf6 {[%emt 0:00:50]} 6. Nc3 {[%emt 0:00:04]} d6 {[%emt 0:00:10]} 7. Be2 {[%emt 0:00:04]} Qc7 {[%emt 0:00:33]} 8. O-O {[%emt 0:00:08]} b6 {[%emt 0:00:21]} 9. Be3 {[%emt 0:00:06]} Bb7 {[%emt 0:00:05]} 10. f3 {[%emt 0:00:04]} Nbd7 {[%emt 0:00:46]} 11. Qd2 {[%emt 0:00:12]} Be7 {[%emt 0:00:20]} 12. Rfc1 {[%emt 0:00:04]} O-O {[%emt 0:01:29]} 13. a4 {[%emt 0:00:04] B41: Sicilian: Kan Variation: 5 c4} (13. b4 Rac8 14. Nb3 Qb8 15. Bf1 Rfe8 16. Qf2 Bd8 17. Na4 Ba8 18. c5 b5 19. Nc3 Bc7 20. g3 dxc5 21. Nxc5 Nxc5 22. bxc5 {1-0 (45) Nepomniachtchi,I (2729)-Ponkratov,P (2613) Riadh 2017}) 13... Rab8 {[%emt 0:03:03]} 14. b4 {[%emt 0:00:05]} Rfc8 {[%emt 0:01:22]} 15. Rab1 {[%emt 0:14:40]} Qd8 {[%emt 0:10:05]} 16. Nb3 $146 {[%emt 0:11:19]} ({Predecessor:} 16. Nc2 Qf8 17. Kh1 Kh8 18. Bf2 Rd8 19. Rd1 Ba8 {0-1 (42) Georgiadis,N (2291)-Rapport,R (2543) Caleta 2012}) 16... Ne5 {[%emt 0:24:05]} (16... d5 $11) 17. c5 {[%emt 0:12:38]} bxc5 {[%emt 0:01:12]} 18. bxc5 {[%emt 0:00:05]} Nc6 {[%emt 0:00:07]} 19. Rd1 {[%emt 0:07:34]} Ne8 {[%emt 0:10:05]} 20. cxd6 {[%emt 0:17:22]} Bxd6 {[%emt 0:00:20]} 21. Nc5 {[%emt 0:01:17]} Qc7 {[%emt 0:10:42]} 22. Nxb7 {[%emt 0:05:25]} Rxb7 {[%emt 0:00:16]} 23. Bxa6 {[%emt 0:01:03]} Rxb1 {[%emt 0:02:31]} 24. Rxb1 {[%emt 0:00:17]} Bxh2+ {[%emt 0:03:01]} 25. Kf1 {[%emt 0:10:36]} Rd8 {[%emt 0:01:29]} 26. Qc1 {[%emt 0:02:11]} Qe7 {[%emt 0:10:59]} 27. Ne2 {[%emt 0:01:54]} Ne5 $16 {[%emt 0:01:44]} 28. Rb7 {[%emt 0:07:05]} Qd6 {[%emt 0:08:47]} 29. Rb6 {[%emt 0:00:38]} Qe7 {[%emt 0:00:53]} 30. Rb7 {[%emt 0:00:21]} Qd6 {[%emt 0:00:04]} 31. Rb6 {[%emt 0:01:02]} Qe7 {[%emt 0:00:07]} 32. a5 1/2-1/2

[Event "5th EFE Metz Festival IM 2019"]
[Site "Metz"]
[Date "2019.07.23"]
[Round "3.2"]
[White "Delorme, Alban"]
[Black "Kurayan, Ruslan"]
[Result "0-1"]
[ECO "B78"]
[WhiteElo "2327"]
[BlackElo "2376"]
[Annotator "NA"]
[PlyCount "40"]
[EventDate "2019.07.22"]
[EventType "tourn"]
[EventCountry "FRA"]
[SourceTitle "playchess.com"]
[Source "ChessBase"]
[SourceQuality "1"]
[TimeControl "5400+30"]

1. e4 {[%emt 0:00:00]} c5 {[%emt 0:00:59]} 2. Nf3 {[%emt 0:00:00]} d6 {[%emt 0:00:04]} 3. d4 {[%emt 0:00:00]} Nf6 {[%emt 0:00:07]} 4. Nc3 {[%emt 0:00:27]} cxd4 {[%emt 0:00:12]} 5. Nxd4 {[%emt 0:01:23]} g6 {[%emt 0:00:06]} 6. Be3 {[%emt 0:00:27]} Bg7 {[%emt 0:00:05]} 7. f3 {[%emt 0:00:15]} O-O {[%emt 0:00:08]} 8. Bc4 {[%emt 0:00:07]} Nc6 {[%emt 0:00:05]} 9. Qd2 {[%emt 0:00:15]} Bd7 {[%emt 0:00:07]} 10. O-O-O {[%emt 0:00:23]} Rb8 {[%emt 0:00:12]} 11. Nxc6 {[%emt 0:07:17]} bxc6 {[%emt 0:03:57]} 12. g4 {[%emt 0:00:48]} Be6 {[%emt 0:11:18]} 13. Bb3 {[%emt 0:05:01]} c5 {[%emt 0:20:43]} 14. e5 {[%emt 0:04:03]} Nd7 {[%emt 0:00:41]} 15. exd6 {[%emt 0:02:41]} exd6 {[%emt 0:11:32]} 16. Bxe6 {[%emt 0:01:21]} fxe6 {[%emt 0:03:44]} 17. Qxd6 {[%emt 0:00:15]} Qa5 {[%emt 0:09:38]} 18. Qxe6+ {[%emt 0:05:21]} Kh8 {[%emt 0:02:01]} 19. Rxd7 {[%emt 0:00:22]} Rxb2 {[%emt 0:00:03]} 20. Nd1 {[%emt 0:04:43]} Rxa2 {[%emt 0:01:26]} 0-1

[Event "5th EFE Metz Festival IM 2019"]
[Site "Metz"]
[Date "2019.07.23"]
[Round "3.5"]
[White "Vedder, Richard"]
[Black "Mouhamad, Joachin"]
[Result "1/2-1/2"]
[ECO "D85"]
[WhiteElo "2286"]
[BlackElo "2302"]
[Annotator "NA"]
[PlyCount "79"]
[EventDate "2019.07.22"]
[EventType "tourn"]
[EventCountry "FRA"]
[SourceTitle "playchess.com"]
[Source "ChessBase"]
[SourceQuality "1"]
[TimeControl "5400+30"]

1. d4 {[%emt 0:00:32]} Nf6 {[%emt 0:00:00]} 2. c4 {[%emt 0:00:04]} g6 {[%emt 0:00:00]} 3. Nc3 {[%emt 0:00:07]} d5 {[%emt 0:00:02]} 4. Nf3 {[%emt 0:00:25]} Bg7 {[%emt 0:00:11]} 5. cxd5 {[%emt 0:00:05]} Nxd5 {[%emt 0:00:04]} 6. e4 {[%emt 0:00:10]} Nxc3 {[%emt 0:00:08]} 7. bxc3 {[%emt 0:00:02]} O-O {[%emt 0:00:44]} 8. Be3 {[%emt 0:00:21]} c5 {[%emt 0:00:39]} 9. Qd2 {[%emt 0:00:14]} Qa5 {[%emt 0:01:45]} 10. Rb1 {[%emt 0:00:20]} cxd4 {[%emt 0:00:44]} 11. cxd4 {[%emt 0:00:02]} Qxd2+ {[%emt 0:00:59]} 12. Kxd2 {[%emt 0:00:07]} b6 {[%emt 0:02:02]} 13. Bd3 {[%emt 0:01:06]} Ba6 {[%emt 0:15:43]} 14. a4 {[%emt 0:04:28]} Bxd3 {[%emt 0:13:16]} 15. Kxd3 {[%emt 0:00:12]} Nd7 {[%emt 0:06:32]} 16. a5 {[%emt 0:00:45]} Rfd8 {[%emt 0:06:24]} 17. axb6 {[%emt 0:27:36]} Nxb6 {[%emt 0:02:52]} 18. Rhc1 {[%emt 0:05:38]} Rd7 {[%emt 0:00:52]} 19. Rc6 {[%emt 0:11:34]} Rad8 20. d5 {[%emt 0:02:46]} f5 {[%emt 0:09:32]} 21. Bxb6 {[%emt 0:01:17]} fxe4+ {[%emt 0:00:09]} 22. Kxe4 {[%emt 0:00:08]} axb6 {[%emt 0:00:08]} 23. Rb5 {[%emt 0:00:10]} Bf6 {[%emt 0:05:12]} 24. Rcxb6 {[%emt 0:02:22]} Ra7 {[%emt 0:01:01]} 25. Ne5 {[%emt 0:18:38]} Ra2 {[%emt 0:03:56]} 26. Ng4 {[%emt 0:02:06]} Bg7 {[%emt 0:09:45]} 27. Rb8 {[%emt 0:01:37]} Rxb8 {[%emt 0:00:48]} 28. Rxb8+ {[%emt 0:00:02]} Kf7 {[%emt 0:00:08]} 29. Kf3 {[%emt 0:02:32]} h5 {[%emt 0:03:14]} 30. Ne3 {[%emt 0:00:02]} Bc3 {[%emt 0:10:36]} 31. Rb1 {[%emt 0:01:00]} Bd4 {[%emt 0:02:23]} 32. Rd1 {[%emt 0:00:39]} Bc5 {[%emt 0:00:06]} 33. h3 {[%emt 0:00:12]} Kf6 {[%emt 0:00:21]} 34. g4 {[%emt 0:01:09]} Ra3 {[%emt 0:02:59]} 35. Rc1 {[%emt 0:01:49]} hxg4+ {[%emt 0:00:40]} 36. hxg4 {[%emt 0:00:02]} Ba7 {[%emt 0:01:56]} 37. Ke4 {[%emt 0:06:37]} Ra4+ {[%emt 0:00:02]} 38. Rc4 {[%emt 0:00:11]} Rxc4+ {[%emt 0:00:25]} 39. Nxc4 {[%emt 0:00:01]} Bxf2 {[%emt 0:00:08]} 40. d6 {[%emt 0:01:42] Ke5+} 1/2-1/2

[Event "5th EFE Metz Festival IM 2019"]
[Site "Metz"]
[Date "2019.07.24"]
[Round "4"]
[White "Zienkiewicz, Jan"]
[Black "Pavee, Louis"]
[Result "0-1"]
[ECO "C15"]
[WhiteElo "1804"]
[BlackElo "1830"]
[Annotator "NA RC"]
[PlyCount "104"]
[EventDate "2019.??.??"]
[EventCountry "FRA"]
[SourceTitle "playchess.com"]
[Source "ChessBase"]
[SourceQuality "1"]
[TimeControl "5400+30"]

1. e4 e6 2. d4 d5 3. Nc3 Bb4 4. Nge2 Nc6 5. e5 f6 6. exf6 Nxf6 7. g3 e5 8. a3 Ba5 9. dxe5 Nxe5 10. Bg2 c6 11. O-O O-O 12. Be3 Bg4 13. h3 Bf3 14. Bd4 Nfd7 15. Bxe5 Nxe5 16. Qd4 Qf6 17. Nf4 Bb6 18. Qd2 Rae8 19. Rae1 g5 20. Nd3 Nc4 21. Qc1 Rxe1 22. Qxe1 Bxg2 23. Kxg2 Qf3+ 24. Kh2 Ne3 25. Rg1 Nxc2 26. Qe6+ Qf7 27. Qxf7+ Rxf7 28. Kg2 Bxf2 29. Rc1 Ne3+ 30. Kh2 Nc4 31. Kg2 Bd4 32. Nd1 Kg7 33. a4 Re7 34. Rc2 a5 35. b3 Ne3+ 36. Nxe3 Rxe3 37. Nc1 h6 38. Rd2 Bc3 39. Rd1 Bb2 40. Nd3 Bd4 41. Nf2 c5 42. Nd3 b6 43. Rd2 Kg6 44. g4 h5 45. Rd1 h4 46. Rd2 Bc3 47. Rd1 Re2+ 48. Kf3 Rh2 49. Nc1 Rxh3+ 50. Kf2 Bd4+ 51. Ke2 Rg3 52. Nd3 Rxg4 0-1

[Event "5th EFE Metz Festival IM 2019"]
[Site "Metz"]
[Date "2019.07.25"]
[Round "5.1"]
[White "Maurizzi, Marc Andria"]
[Black "Kurayan, Ruslan"]
[Result "1-0"]
[ECO "B24"]
[WhiteElo "2412"]
[BlackElo "2376"]
[Annotator "NA"]
[PlyCount "89"]
[EventDate "2019.07.22"]
[EventType "tourn"]
[EventCountry "FRA"]
[SourceTitle "playchess.com"]
[Source "ChessBase"]
[SourceQuality "1"]
[TimeControl "5400+30"]

1. e4 {[%emt 0:00:00]} c5 {[%emt 0:06:25]} 2. Nc3 {[%emt 0:00:00]} Nc6 {[%emt 0:01:40]} 3. Nf3 {[%emt 0:00:00]} g6 {[%emt 0:00:34]} 4. Bb5 {[%emt 0:00:08]} Nd4 {[%emt 0:00:41]} 5. Ba4 {[%emt 0:10:31]} Bg7 {[%emt 0:02:53]} 6. O-O {[%emt 0:00:26]} Qa5 {[%emt 0:09:04]} 7. Rb1 {[%emt 0:04:21]} b5 {[%emt 0:07:10]} 8. Nxd4 {[%emt 0:00:25]} bxa4 {[%emt 0:01:00]} 9. Nde2 {[%emt 0:02:33]} Nf6 {[%emt 0:09:59]} 10. d3 {[%emt 0:07:15]} O-O {[%emt 0:07:09]} 11. b3 {[%emt 0:05:41]} axb3 {[%emt 0:05:13]} 12. axb3 {[%emt 0:00:19]} Bb7 {[%emt 0:00:23]} 13. Bb2 {[%emt 0:16:46]} e6 {[%emt 0:02:26]} 14. Na4 {[%emt 0:08:08]} Qc7 {[%emt 0:12:19]} 15. Qd2 {[%emt 0:08:17]} d6 {[%emt 0:08:21]} 16. Ng3 {[%emt 0:10:24]} Bc6 {[%emt 0:02:57]} 17. Qg5 {[%emt 0:03:18]} Qd8 {[%emt 0:08:49]} 18. e5 {[%emt 0:04:28]} h6 {[%emt 0:02:25]} 19. Qh4 {[%emt 0:03:19]} dxe5 {[%emt 0:01:43]} 20. Nxc5 {[%emt 0:01:05]} Qd5 {[%emt 0:01:38]} 21. Nce4 {[%emt 0:00:08]} Nh7 {[%emt 0:02:51]} 22. c4 {[%emt 0:02:02]} Qd7 {[%emt 0:03:12]} 23. b4 {[%emt 0:01:14]} f5 {[%emt 0:00:59]} 24. b5 {[%emt 0:01:22]} Bxe4 {[%emt 0:00:38]} 25. dxe4 {[%emt 0:00:01]} f4 {[%emt 0:01:10]} 26. Rfd1 {[%emt 0:00:12]} Qb7 {[%emt 0:00:35]} 27. Nf1 {[%emt 0:00:10]} Qxe4 {[%emt 0:00:15]} 28. Qg4 {[%emt 0:01:52]} Rae8 {[%emt 0:00:50]} 29. Nd2 {[%emt 0:01:00]} Qc2 {[%emt 0:00:15]} 30. Ba3 {[%emt 0:01:19]} Rf7 {[%emt 0:00:35]} 31. Rbc1 {[%emt 0:00:27]} Qa4 {[%emt 0:00:34]} 32. Bd6 {[%emt 0:00:18]} Ng5 {[%emt 0:00:43]} 33. h4 {[%emt 0:00:35]} h5 {[%emt 0:00:13]} 34. Qxg5 {[%emt 0:00:05]} Kh7 {[%emt 0:00:08]} 35. Ne4 {[%emt 0:04:38]} Rf5 {[%emt 0:00:12]} 36. Bxe5 {[%emt 0:00:10]} Rxg5 {[%emt 0:01:21]} 37. Nxg5+ {[%emt 0:00:01]} Kg8 {[%emt 0:00:04]} 38. Bxg7 {[%emt 0:00:37]} Kxg7 {[%emt 0:00:02]} 39. Ra1 {[%emt 0:00:19]} Qxc4 {[%emt 0:01:20]} 40. Rxa7+ {[%emt 0:00:25]} Kg8 {[%emt 0:00:39]} 41. Rdd7 {[%emt 0:01:39]} Qb4 {[%emt 0:00:19]} 42. Rg7+ {[%emt 0:00:33]} Kh8 {[%emt 0:00:01]} 43. Kh2 {[%emt 0:01:27]} f3 {[%emt 0:00:07]} 44. Rxg6 {[%emt 0:00:06]} Qb1 45. Rgg7 1-0

[Event "5th EFE Metz Festival IM 2019"]
[Site "Metz"]
[Date "2019.07.25"]
[Round "5.2"]
[White "Philippe, Guillaume"]
[Black "Delorme, Alban"]
[Result "0-1"]
[ECO "A04"]
[WhiteElo "2344"]
[BlackElo "2327"]
[Annotator "NA"]
[PlyCount "96"]
[EventDate "2019.07.22"]
[EventType "tourn"]
[EventCountry "FRA"]
[SourceTitle "playchess.com"]
[Source "ChessBase"]
[SourceQuality "1"]
[TimeControl "5400+30"]

1. Nf3 {[%emt 0:05:31]} c5 {[%emt 0:00:00]} 2. e3 {[%emt 0:00:09]} g6 {[%emt 0:04:41]} 3. c4 {[%emt 0:00:31]} Bg7 {[%emt 0:01:23]} 4. Nc3 {[%emt 0:00:43]} Nf6 {[%emt 0:04:51]} 5. Be2 {[%emt 0:01:35]} O-O {[%emt 0:00:38]} 6. O-O {[%emt 0:00:09]} d5 {[%emt 0:01:43]} 7. d4 {[%emt 0:00:36]} cxd4 {[%emt 0:02:07]} 8. exd4 {[%emt 0:00:05]} dxc4 {[%emt 0:00:45]} 9. Bxc4 {[%emt 0:00:20]} Bg4 {[%emt 0:06:30]} 10. h3 {[%emt 0:00:22]} Bxf3 {[%emt 0:06:57]} 11. Qxf3 {[%emt 0:00:05]} Nc6 {[%emt 0:03:26]} 12. Rd1 {[%emt 0:00:38]} Rc8 {[%emt 0:03:16]} 13. Be3 {[%emt 0:21:22]} Qa5 {[%emt 0:07:00]} 14. Bb3 {[%emt 0:02:44]} e6 {[%emt 0:06:04]} 15. Rac1 {[%emt 0:02:33]} Qb4 {[%emt 0:06:21]} 16. Ne2 {[%emt 0:05:43]} Nd5 {[%emt 0:03:55]} 17. Rc4 {[%emt 0:03:58]} Ne5 {[%emt 0:07:44]} 18. dxe5 {[%emt 0:09:02]} Rxc4 {[%emt 0:00:07]} 19. Bxc4 {[%emt 0:02:05]} Qxc4 {[%emt 0:00:08]} 20. Nc3 {[%emt 0:08:08]} Nxc3 {[%emt 0:02:58]} 21. bxc3 {[%emt 0:00:03]} b6 {[%emt 0:05:35]} 22. Rd7 {[%emt 0:02:36]} Qxa2 {[%emt 0:05:48]} 23. Bd4 {[%emt 0:00:18]} a5 {[%emt 0:02:22]} 24. Qc6 {[%emt 0:02:51]} Qe2 {[%emt 0:05:01]} 25. Qd6 {[%emt 0:10:50]} h5 {[%emt 0:02:28]} 26. Rb7 {[%emt 0:01:14]} b5 {[%emt 0:01:35]} 27. Qc5 {[%emt 0:01:28]} Qe1+ {[%emt 0:02:42]} 28. Kh2 {[%emt 0:00:21]} Bh6 {[%emt 0:03:16]} 29. h4 {[%emt 0:08:16]} Qe4 {[%emt 0:00:24]} 30. Rxb5 {[%emt 0:00:12]} Qxh4+ {[%emt 0:00:03]} 31. Kg1 {[%emt 0:00:24]} a4 {[%emt 0:00:01]} 32. Qb4 {[%emt 0:04:57]} Qg4 {[%emt 0:02:27]} 33. Qxa4 {[%emt 0:01:11]} h4 {[%emt 0:00:08]} 34. Rb1 {[%emt 0:01:57]} h3 {[%emt 0:00:13]} 35. Qc6 {[%emt 0:00:09]} Qf5 {[%emt 0:03:36]} 36. Re1 {[%emt 0:01:06]} Bd2 {[%emt 0:00:34]} 37. Rd1 {[%emt 0:00:29]} Bf4 {[%emt 0:00:41]} 38. Qf3 {[%emt 0:00:49]} hxg2 {[%emt 0:00:16]} 39. Re1 {[%emt 0:01:01]} Kg7 {[%emt 0:00:53]} 40. Qe4 {[%emt 0:01:01]} Qh5 {[%emt 0:00:50]} 41. Qxg2 {[%emt 0:01:28]} Rh8 {[%emt 0:00:19]} 42. Kf1 {[%emt 0:00:43]} Bd2 {[%emt 0:00:40]} 43. Re2 {[%emt 0:00:35]} Rb8 {[%emt 0:00:05]} 44. f3 {[%emt 0:00:21]} Rb1+ {[%emt 0:00:23]} 45. Kf2 {[%emt 0:00:05]} Bf4 {[%emt 0:00:34]} 46. Ra2 {[%emt 0:00:54]} Rh1 {[%emt 0:00:56]} 47. Be3 {[%emt 0:00:23]} Qh4+ {[%emt 0:00:12]} 48. Ke2 {[%emt 0:00:15]} Rh2 {[%emt 0:00:27]} 0-1

[Event "5th EFE Metz Festival IM 2019"]
[Site "Metz"]
[Date "2019.07.25"]
[Round "5.4"]
[White "Vedder, Richard"]
[Black "Villegas, Pierre"]
[Result "0-1"]
[ECO "A06"]
[WhiteElo "2286"]
[BlackElo "2349"]
[Annotator "NA"]
[PlyCount "100"]
[EventDate "2019.07.22"]
[EventType "tourn"]
[EventCountry "FRA"]
[SourceTitle "playchess.com"]
[Source "ChessBase"]
[SourceQuality "1"]
[TimeControl "5400+30"]

1. Nf3 {[%emt 0:00:00]} d5 {[%emt 0:00:00]} 2. g3 {[%emt 0:00:00]} Nf6 {[%emt 0:00:00]} 3. Bg2 {[%emt 0:00:00]} c5 {[%emt 0:00:00]} 4. O-O {[%emt 0:00:00]} Nc6 {[%emt 0:00:00]} 5. d4 {[%emt 0:00:02]} cxd4 {[%emt 0:00:00]} 6. Nxd4 {[%emt 0:00:08]} e5 {[%emt 0:00:02]} 7. Nxc6 {[%emt 0:00:16]} bxc6 {[%emt 0:00:03]} 8. c4 {[%emt 0:00:25]} Be6 {[%emt 0:00:15]} 9. Qa4 {[%emt 0:01:48]} Qd7 {[%emt 0:00:18]} 10. Nc3 {[%emt 0:02:03]} Rc8 {[%emt 0:00:06]} 11. cxd5 {[%emt 0:01:23]} cxd5 {[%emt 0:00:21]} 12. Qxd7+ {[%emt 0:00:33]} Kxd7 {[%emt 0:00:05]} 13. Rd1 {[%emt 0:01:05]} Bc5 {[%emt 0:00:14]} 14. Nxd5 {[%emt 0:25:52]} Nxd5 {[%emt 0:00:13]} 15. Bxd5 {[%emt 0:00:06]} Bxd5 {[%emt 0:00:04]} 16. Rxd5+ {[%emt 0:00:07]} Ke6 {[%emt 0:00:04]} 17. e4 {[%emt 0:00:24]} Rhd8 {[%emt 0:07:05]} 18. Bd2 {[%emt 0:01:07]} Rxd5 {[%emt 0:01:28]} 19. exd5+ {[%emt 0:00:05]} Kxd5 {[%emt 0:00:07]} 20. Bc3 {[%emt 0:00:04]} Bd4 {[%emt 0:01:37]} 21. Rd1 {[%emt 0:00:05]} g5 {[%emt 0:09:50]} 22. h3 {[%emt 0:01:36]} h5 {[%emt 0:08:49]} 23. Kf1 {[%emt 0:03:14]} g4 {[%emt 0:04:54]} 24. hxg4 {[%emt 0:00:08]} hxg4 {[%emt 0:00:04]} 25. Ke2 {[%emt 0:00:07]} Ke4 {[%emt 0:02:52]} 26. Rc1 {[%emt 0:10:17]} f5 {[%emt 0:12:22]} 27. Bd2 {[%emt 0:07:21]} Rxc1 {[%emt 0:07:17]} 28. Bxc1 {[%emt 0:00:08]} f4 {[%emt 0:00:03]} 29. gxf4 {[%emt 0:00:12]} exf4 {[%emt 0:00:05]} 30. b4 {[%emt 0:00:29]} g3 {[%emt 0:18:51]} 31. f3+ {[%emt 0:00:17]} Kd5 {[%emt 0:00:44]} 32. Kf1 {[%emt 0:13:34]} Be3 {[%emt 0:00:55]} 33. Bb2 {[%emt 0:00:24]} Kc4 {[%emt 0:00:08]} 34. a3 {[%emt 0:00:11]} Kb3 {[%emt 0:00:18]} 35. Be5 {[%emt 0:00:06]} Kxa3 {[%emt 0:00:19]} 36. Bd6 {[%emt 0:00:05]} Kb3 {[%emt 0:00:42]} 37. Kg2 {[%emt 0:00:26]} Kc4 {[%emt 0:00:27]} 38. Kh3 {[%emt 0:00:07]} a6 {[%emt 0:02:22]} 39. Kg2 {[%emt 0:00:05]} Bd2 {[%emt 0:01:29]} 40. Kh3 {[%emt 0:00:06]} Kb3 {[%emt 0:00:08]} 41. Kg2 {[%emt 0:00:08]} Bxb4 {[%emt 0:01:36]} 42. Bxf4 {[%emt 0:00:03]} a5 {[%emt 0:00:03]} 43. Be5 {[%emt 0:01:03]} a4 {[%emt 0:02:20]} 44. f4 {[%emt 0:00:07]} a3 {[%emt 0:00:02]} 45. f5 {[%emt 0:00:05]} a2 {[%emt 0:00:07]} 46. f6 {[%emt 0:00:04]} Bd6 {[%emt 0:00:19]} 47. Ba1 {[%emt 0:01:36]} Kc4 {[%emt 0:00:33]} 48. Kh3 {[%emt 0:01:56]} Kd5 {[%emt 0:00:07]} 49. Kg2 {[%emt 0:00:08]} Ke6 {[%emt 0:00:03]} 50. Kh3 {[%emt 0:00:06]} Bc7 {[%emt 0:00:11]} 0-1

[Event "5th EFE Metz Festival IM 2019"]
[Site "Metz"]
[Date "2019.07.26"]
[Round "7.2"]
[White "Micottis, Dorian"]
[Black "Maurizzi, Marc Andria"]
[Result "1/2-1/2"]
[ECO "B40"]
[WhiteElo "2226"]
[BlackElo "2412"]
[Annotator "NA"]
[PlyCount "72"]
[EventDate "2019.07.22"]
[EventType "tourn"]
[EventCountry "FRA"]
[SourceTitle "playchess.com"]
[Source "ChessBase"]
[SourceQuality "1"]
[TimeControl "5400+30"]

1. e4 {[%emt 0:00:00]} c5 {[%emt 0:00:00]} 2. Nf3 {[%emt 0:00:00]} e6 {[%emt 0:00:00]} 3. d3 {[%emt 0:00:31]} Nc6 {[%emt 0:02:53]} 4. g3 {[%emt 0:00:14]} d6 {[%emt 0:04:24]} 5. Bg2 {[%emt 0:00:15]} g6 {[%emt 0:00:27]} 6. O-O {[%emt 0:01:10]} Bg7 {[%emt 0:00:04]} 7. c3 {[%emt 0:00:32]} Nge7 {[%emt 0:00:26]} 8. Re1 {[%emt 0:07:18]} O-O {[%emt 0:00:47]} 9. d4 {[%emt 0:05:51]} cxd4 {[%emt 0:04:50]} 10. cxd4 {[%emt 0:00:03]} d5 {[%emt 0:00:11]} 11. e5 {[%emt 0:01:54]} Nf5 {[%emt 0:06:20]} 12. Nc3 {[%emt 0:02:15]} f6 {[%emt 0:02:07]} 13. g4 {[%emt 0:08:13]} Nfe7 {[%emt 0:37:36]} 14. exf6 {[%emt 0:06:18]} Rxf6 {[%emt 0:00:21]} 15. Bg5 {[%emt 0:04:59]} Rf7 {[%emt 0:01:16]} 16. Qd2 {[%emt 0:13:03]} Qf8 {[%emt 0:02:19]} 17. Qe3 {[%emt 0:06:30]} h6 {[%emt 0:03:17]} 18. Bxe7 {[%emt 0:00:44]} Qxe7 {[%emt 0:10:03]} 19. Ne2 {[%emt 0:05:18]} Qf6 20. Rac1 {[%emt 0:07:46]} Bd7 {[%emt 0:11:27]} 21. h3 {[%emt 0:01:05]} Raf8 {[%emt 0:00:49]} 22. Rf1 {[%emt 0:01:32]} Re7 {[%emt 0:01:41]} 23. Rcd1 {[%emt 0:10:47]} Kh8 {[%emt 0:02:43]} 24. g5 {[%emt 0:03:55]} hxg5 {[%emt 0:00:09]} 25. Qxg5 {[%emt 0:00:02]} Qxg5 {[%emt 0:01:20]} 26. Nxg5 {[%emt 0:00:04]} e5 {[%emt 0:00:25]} 27. dxe5 {[%emt 0:01:02]} Rxe5 {[%emt 0:00:24]} 28. Rxd5 {[%emt 0:00:05]} Rxd5 {[%emt 0:00:28]} 29. Bxd5 {[%emt 0:00:04]} Rf5 {[%emt 0:00:53]} 30. Nf7+ {[%emt 0:01:45]} Kh7 {[%emt 0:00:01]} 31. Bb3 {[%emt 0:03:18]} Nd4 {[%emt 0:01:29]} 32. Ng3 {[%emt 0:02:07]} Nf3+ {[%emt 0:01:39]} 33. Kg2 {[%emt 0:01:01]} Nh4+ {[%emt 0:01:14]} 34. Kg1 {[%emt 0:00:04]} Nf3+ {[%emt 0:00:09]} 35. Kg2 {[%emt 0:00:03]} Nh4+ {[%emt 0:01:02]} 36. Kg1 {[%emt 0:00:03]} Nf3+ {[%emt 0:00:10]} 1/2-1/2

[Event "5th EFE Metz Festival IM 2019"]
[Site "Metz"]
[Date "2019.07.26"]
[Round "7.3"]
[White "Vedder, Richard"]
[Black "Delorme, Alban"]
[Result "1-0"]
[ECO "D31"]
[WhiteElo "2286"]
[BlackElo "2327"]
[Annotator "NA"]
[PlyCount "39"]
[EventDate "2019.07.22"]
[EventType "tourn"]
[EventCountry "FRA"]
[SourceTitle "playchess.com"]
[Source "ChessBase"]
[SourceQuality "1"]
[TimeControl "5400+30"]

1. d4 {[%emt 0:00:00]} d5 {[%emt 0:05:14]} 2. c4 {[%emt 0:00:00]} e6 {[%emt 0:00:08]} 3. Nc3 {[%emt 0:00:00]} Be7 {[%emt 0:00:35]} 4. cxd5 {[%emt 0:00:00]} exd5 {[%emt 0:00:08]} 5. Bf4 {[%emt 0:00:00]} Nf6 {[%emt 0:00:23]} 6. e3 {[%emt 0:00:00]} O-O {[%emt 0:00:34]} 7. Bd3 {[%emt 0:00:59]} b6 {[%emt 0:01:42]} 8. Rc1 {[%emt 0:03:13]} c5 {[%emt 0:01:50]} 9. Nf3 {[%emt 0:02:40]} Bb7 {[%emt 0:00:40]} 10. Ne5 {[%emt 0:03:39]} Ne4 {[%emt 0:02:44]} 11. dxc5 {[%emt 0:03:41]} Nxc3 {[%emt 0:06:15]} 12. bxc3 {[%emt 0:01:41]} bxc5 {[%emt 0:02:22]} 13. Rb1 {[%emt 0:01:56]} Qc8 {[%emt 0:02:11]} 14. Qh5 {[%emt 0:01:46]} f5 {[%emt 0:05:17]} 15. Rxb7 {[%emt 0:01:52]} Qxb7 {[%emt 0:04:56]} 16. Bxf5 {[%emt 0:00:15]} Rxf5 {[%emt 0:02:36]} 17. Qxf5 {[%emt 0:00:08]} Bf6 {[%emt 0:00:10]} 18. Qe6+ {[%emt 0:01:09]} Kf8 {[%emt 0:00:05]} 19. O-O {[%emt 0:00:32]} Na6 {[%emt 0:01:11]} 20. Nd7+ {[%emt 0:00:12]} 1-0